bitfinex/quotes_ETHUSD_20230110
["timestamp","ask_amount","ask_price","bid_price","bid_amount"]
[1673326376187,19.35676131,1328.1,1328.0,1.99305326]
[1673326376418,11.82721131,1328.1,1328.0,1.99305326]
[1673326376555,4.29766131,1328.1,1328.0,1.99305326]
[1673326376775,4.23166131,1328.1,1328.0,1.99305326]
[1673326377016,11.76121131,1328.1,1328.0,1.99305326]
[1673326377338,11.82721131,1328.1,1328.0,1.99305326]
[1673326378771,19.35676131,1328.1,1328.0,1.99305326]
[1673326378974,11.82721131,1328.1,1328.0,1.99305326]
[1673326380239,8.93388038,1328.1,1328.0,1.99305326]
[1673326382069,16.46343038,1328.1,1328.0,1.99305326]
[1673326383972,23.99298038,1328.1,1328.0,1.99305326]
[1673326384575,23.99298038,1328.1,1328.0,13.3208339]
[1673326384576,0.27923792,1328.1,1328.0,13.3208339]
[1673326384766,0.21323792,1328.1,1328.0,20.9169539]
[1673326384978,1e-08,1328.1,1328.0,31.29178629]
[1673326385210,1e-08,1328.1,1328.0,23.76166629]
[1673326385752,1e-08,1328.1,1328.0,21.76861303]
[1673326386988,1e-08,1328.1,1328.0,24.76861303]
[1673326390685,1e-08,1328.1,1328.0,9.70837303]
[1673326391296,1e-08,1328.1,1328.0,17.23849303]
[1673326392897,1.00245372,1328.2,1328.1,1.05599999]
[1673326393064,1.00245372,1328.2,1328.1,30.80078393]
[1673326393267,1.00245372,1328.2,1328.1,31.09678393]
[1673326395260,1.00245372,1328.2,1328.1,34.09678393]
[1673326397933,1.00245372,1328.2,1328.1,26.56723393]
[1673326398893,1.00245372,1328.2,1328.1,34.09678393]
[1673326400108,1.00245372,1328.2,1328.1,26.56723393]
[1673326400334,1.00245372,1328.2,1328.1,19.03768393]
[1673326401378,1.00245372,1328.2,1328.1,26.56723393]
[1673326401592,1.00245372,1328.2,1328.1,19.03768393]
[1673326403186,1.00245372,1328.2,1328.1,26.56723393]
[1673326404543,1.00245372,1328.2,1328.1,10.45413393]
[1673326404728,8.53143372,1328.2,1328.1,10.45413393]
[1673326404930,1.06845372,1328.2,1328.1,6.86566063]
[1673326405159,1.00245372,1328.2,1328.1,6.86566063]
[1673326407273,26.40223259,1328.2,1328.1,0.06799999]
[1673326407479,25.34314013,1328.2,1328.1,0.00199999]
[1673326407703,29.14421234,1328.2,1328.1,0.00199999]
[1673326407936,33.0945079,1328.2,1328.1,0.00199999]
[1673326408293,30.8443791,1328.2,1328.1,0.00199999]
[1673326410180,15.7864191,1328.2,1328.1,0.00199999]
[1673326410423,32.2053791,1328.2,1328.1,0.00199999]
[1673326412582,34.13071577,1328.2,1328.1,0.00199999]
[1673326413157,17.53181,1327.9,1327.6,3.066]
[1673326413373,8.6581904,1327.8,1327.6,6.79766064]
[1673326413584,8.7241904,1327.8,1327.6,6.86366064]
[1673326413799,15.12854,1327.8,1327.6,3.066]
[1673326414082,22.65981,1327.8,1327.5,3.064]
[1673326414325,7.59727,1327.8,1327.5,6.79766064]
[1673326414541,7.59727,1327.8,1327.5,6.86366064]
[1673326415521,7.59727,1327.8,1327.5,11.59721959]
[1673326415719,7.59727,1327.8,1327.5,19.13013959]
[1673326416024,15.12854,1327.8,1327.5,11.59721959]
[1673326417023,15.12854,1327.8,1327.5,6.86366064]
[1673326417685,22.65981,1327.8,1327.5,6.86366064]
[1673326418306,16.2554604,1327.8,1327.5,6.86366064]
[1673326418549,0.066,1327.8,1327.5,6.86366064]
[1673326418784,31.434718,1327.9,1327.5,14.39643064]
[1673326418923,31.434608,1327.9,1327.5,14.39643064]
[1673326419133,38.965638,1327.9,1327.5,14.39643064]
[1673326419496,41.528638,1327.9,1327.5,14.39643064]
[1673326419901,39.8382574,1327.9,1327.5,14.39643064]
[1673326420115,39.8382574,1327.9,1327.5,14.39443064]
[1673326420427,39.8382574,1327.9,1327.5,14.39643064]
[1673326421020,32.3071274,1327.9,1327.5,14.39643064]
[1673326421251,39.8381574,1327.9,1327.5,14.39643064]
[1673326421554,39.8381574,1327.9,1327.5,6.86366064]
[1673326422401,2.4819204,1327.8,1327.5,6.86366064]
[1673326422625,22.59546,1327.7,1327.5,3.066]
[1673326422810,22.66146,1327.7,1327.5,3.0]
[1673326423541,15.12964,1327.7,1327.5,3.0]
[1673326424351,0.066,1327.7,1327.5,3.0]
[1673326424506,13.9766242,1327.8,1327.5,10.53288]
[1673326424848,13.9766242,1327.8,1327.5,10.59888]
[1673326424849,12.8497038,1327.8,1327.5,10.59888]
[1673326425271,12.8497038,1327.8,1327.5,3.066]
[1673326425485,20.3811638,1327.8,1327.5,3.0]
[1673326425957,12.8496138,1327.8,1327.5,3.0]
[1673326426168,5.3181538,1327.8,1327.5,10.53287]
[1673326426416,5.3181538,1327.8,1327.5,10.59887]
[1673326426588,12.8494538,1327.8,1327.5,10.59887]
[1673326427440,1.421,1327.8,1327.6,3.79766064]
[1673326427674,11.0612,1327.9,1327.6,3.79766064]
[1673326427907,11.0612,1327.9,1327.7,7.53182]
[1673326428235,9.7002,1327.9,1327.7,0.066]
[1673326428381,13.54811104,1327.9,1327.6,26.45979064]
[1673326429737,9.7002,1327.9,1327.6,26.45979064]
[1673326431649,9.7502,1327.9,1327.6,26.45979064]
[1673326431860,9.7002,1327.9,1327.6,26.45979064]
[1673326432681,9.7002,1327.9,1327.6,26.45779064]
[1673326432891,9.7002,1327.9,1327.6,26.45979064]
[1673326433104,0.066,1327.9,1327.7,6.79766064]
[1673326433316,2.19537412,1328.2,1327.9,0.066]
[1673326433707,2.19537412,1328.2,1328.0,26.38729064]
[1673326433708,1.00245372,1328.2,1328.0,26.38729064]
[1673326433844,1.00245372,1328.2,1328.1,6.79766064]
[1673326434054,1.00245372,1328.2,1328.1,21.92276064]
[1673326435456,1.00245372,1328.2,1328.1,29.45231064]
[1673326436073,1.00245372,1328.2,1328.1,21.92276064]
[1673326436502,1.00245372,1328.2,1328.1,29.45231064]
[1673326440617,1.00245372,1328.2,1328.1,33.1505407]
[1673326440939,10.9412,1328.4,1328.1,33.1505407]
[1673326440940,11.0072,1328.4,1328.1,33.1505407]
[1673326441160,11.0072,1328.4,1328.2,3.79766064]
[1673326441327,11.0072,1328.4,1328.3,22.58523]
[1673326441667,0.066,1328.4,1328.3,22.65123]
[1673326441877,10.50880751,1328.5,1328.3,22.65123]
[1673326442141,3.19968811,1328.5,1328.3,22.65123]
[1673326442328,3.13368811,1328.5,1328.3,22.65123]
[1673326444140,1.44330751,1328.5,1328.3,22.65123]
[1673326445029,1.44330751,1328.5,1328.4,3.79766064]
[1673326445237,0.31638711,1328.5,1328.4,6.79766064]
[1673326445508,0.31638711,1328.5,1328.4,29.44721064]
[1673326447613,0.31638711,1328.5,1328.4,21.91936064]
[1673326447780,0.31638711,1328.5,1328.4,6.86366064]
[1673326447999,16.42494711,1328.5,1328.4,3.066]
[1673326448341,16.42494711,1328.5,1328.4,3.0]
[1673326448342,2.81360206,1328.5,1328.4,3.0]
[1673326448550,2.74760206,1328.5,1328.4,3.0]
[1673326448716,10.27488206,1328.5,1328.3,0.066]
[1673326448927,2.81360206,1328.5,1328.2,18.1239]
[1673326449135,2.74760206,1328.5,1328.2,21.92156064]
[1673326449381,10.27490206,1328.5,1328.2,14.39261064]
[1673326449551,7.90968711,1328.5,1328.2,14.39261064]
[1673326450966,22.96426711,1328.5,1328.2,3.066]
[1673326451179,7.90966711,1328.5,1328.2,3.0]
[1673326451494,15.43696711,1328.5,1328.2,3.0]
[1673326451710,18.23618416,1328.5,1328.2,3.0]
[1673326452342,25.76348416,1328.5,1328.2,3.0]
[1673326453711,18.80088416,1328.5,1328.2,3.0]
[1673326455054,26.32816416,1328.5,1328.2,3.0]
[1673326456320,27.45508456,1328.5,1328.2,3.0]
[1673326456531,19.92778456,1328.5,1328.2,3.0]
[1673326456707,18.80086416,1328.5,1328.2,3.0]
[1673326457080,26.32814416,1328.5,1328.2,3.0]
[1673326457229,18.80086416,1328.5,1328.2,3.0]
[1673326457445,2.5,1328.4,1328.1,3.066]
[1673326457651,22.58523,1328.3,1328.1,3.0]
[1673326457901,22.65123,1328.3,1328.1,3.0]
[1673326458422,7.59441,1328.3,1328.1,3.0]
[1673326460007,2.713,1328.2,1328.1,3.0]
[1673326460180,7.52955,1328.1,1328.0,3.066]
[1673326460395,17.6251,1328.1,1327.9,3.132]
[1673326460606,22.65465,1328.1,1327.9,3.066]
[1673326461694,22.65465,1328.1,1327.9,0.066]
[1673326461856,17.78124,1328.0,1327.9,0.066]
[1673326462067,29.420949,1328.0,1327.9,0.066]
[1673326462740,29.420949,1328.0,1327.9,0.06209809]
[1673326463693,29.985849,1328.0,1327.9,0.06209809]
[1673326466805,39.84360966,1328.0,1327.9,8.09e-06]
[1673326467010,2.5,1327.9,1327.5,0.01196523]
[1673326467341,1.361,1327.6,1327.5,0.01196523]
[1673326467692,8.89338,1327.6,1327.5,0.01196523]
[1673326467852,8.95938,1327.6,1327.5,0.01196523]
[1673326468060,0.066,1327.6,1327.5,0.01196523]
[1673326468274,1.054,1327.6,1327.5,0.01196523]
[1673326468481,8.58638,1327.6,1327.5,0.01196523]
[1673326468731,16.18476,1327.6,1327.5,0.01196523]
[1673326468896,1.12,1327.6,1327.5,0.01196523]
[1673326469111,9.94738,1327.6,1327.5,0.01196523]
[1673326469361,21.800319,1327.6,1327.5,0.01196523]
[1673326470863,29.332699,1327.6,1327.5,0.01196523]
[1673326471367,4.235559,1327.6,1327.5,0.01196523]
[1673326471532,1.413,1327.7,1327.5,0.01196523]
[1673326471742,8.8789,1327.7,1327.5,0.01196523]
[1673326471946,8.9449,1327.7,1327.5,0.01196523]
[1673326472609,16.4768,1327.7,1327.5,0.01196523]
[1673326474376,1.413,1327.7,1327.5,7.54491523]
[1673326474580,1.413,1327.7,1327.5,7.61091523]
[1673326474581,1.347,1327.7,1327.5,7.61091523]
[1673326474839,1.347,1327.7,1327.5,7.61039523]
[1673326475241,1.347,1327.7,1327.5,0.07796523]
[1673326475451,8.879,1327.7,1327.5,0.01196523]
[1673326475743,1.413,1327.7,1327.5,0.01196523]
[1673326476091,1.347,1327.7,1327.5,0.01196523]
[1673326476475,21.6548,1327.8,1327.7,1.12144791]
[1673326476687,1.426,1327.8,1327.7,1.12144791]
[1673326476935,1.36,1327.8,1327.7,1.12144791]
[1673326480520,1.917,1327.9,1327.7,1.12144791]
[1673326481201,1.967,1327.9,1327.7,1.12144791]
[1673326481657,9.4977,1327.9,1327.7,1.12144791]
[1673326481882,14.5747929,1327.9,1327.7,1.12144791]
[1673326482076,14.5748829,1327.9,1327.7,1.12144791]
[1673326482506,7.0440929,1327.9,1327.7,1.12144791]
[1673326482732,16.52954,1327.9,1327.7,4.12144791]
[1673326483105,16.52954,1327.9,1327.7,1.12144791]
[1673326483318,16.47954,1327.9,1327.7,1.12144791]
[1673326485422,24.01031,1327.9,1327.7,1.12144791]
[1673326488473,23.782513,1327.9,1327.7,1.12144791]
[1673326488680,29.50899844,1327.9,1327.7,1.12144791]
[1673326489472,28.43479544,1327.9,1327.7,1.12144791]
[1673326490381,29.55899844,1327.9,1327.7,1.12144791]
[1673326491021,30.12399844,1327.9,1327.7,1.12144791]
[1673326491453,30.07399844,1327.9,1327.7,1.12144791]
[1673326491646,2.5,1327.8,1327.7,1.12144791]
[1673326491853,28.35114984,1327.8,1327.7,1.12144791]
[1673326492055,28.41714984,1327.8,1327.7,1.12144791]
[1673326492261,29.77814984,1327.8,1327.7,1.12144791]
[1673326493207,30.90235284,1327.8,1327.7,1.11865349]
[1673326494952,28.40235284,1327.8,1327.7,1.11865349]
[1673326495121,31.45373344,1327.8,1327.7,1.11865349]
[1673326496292,32.58337124,1327.8,1327.7,1.11865349]
[1673326496505,30.32953044,1327.8,1327.7,1.11865349]
[1673326496716,32.58337124,1327.8,1327.7,1.11865349]
[1673326496927,30.32953044,1327.8,1327.7,1.11865349]
[1673326498480,30.89299064,1327.8,1327.7,1.11865349]
[1673326500272,11.11654164,1327.8,1327.7,1.11865349]
[1673326500485,8.29924064,1327.8,1327.7,1.11865349]
[1673326501031,30.89299064,1327.8,1327.7,1.11865349]
[1673326501418,33.71029164,1327.8,1327.7,1.11865349]
[1673326501998,33.76029164,1327.8,1327.7,1.11865349]
[1673326502926,11.16654164,1327.8,1327.7,1.11865349]
[1673326503251,15.88049064,1327.8,1327.7,1.11865349]
[1673326503463,8.34924064,1327.8,1327.7,1.11865349]
[1673326503780,23.41174064,1327.8,1327.7,1.11865349]
[1673326503972,20.07808621,1327.8,1327.7,1.11865349]
[1673326504186,22.33192701,1327.8,1327.7,1.11865349]
[1673326505343,20.63974064,1327.8,1327.7,1.11865349]
[1673326505994,28.17099064,1327.8,1327.7,1.11865349]
[1673326506382,30.98829164,1327.8,1327.7,1.11865349]
[1673326508271,12.6683918,1327.8,1327.7,1.11865349]
[1673326508476,5.1371418,1327.8,1327.7,1.11865349]
[1673326508689,4.01245632,1327.8,1327.7,1.11865349]
[1673326508938,3.94845632,1327.8,1327.7,1.11865349]
[1673326509250,1.69261552,1327.8,1327.7,1.11865349]
[1673326509407,3.94645632,1327.8,1327.7,1.11865349]
[1673326510562,11.47770632,1327.8,1327.7,1.11865349]
[1673326510766,11.54370632,1327.8,1327.7,1.11865349]
[1673326511241,4.01245632,1327.8,1327.7,1.11865349]
[1673326511450,3.94645632,1327.8,1327.7,1.11865349]
[1673326511821,1.69261552,1327.8,1327.7,1.11865349]
[1673326512270,1.74261552,1327.8,1327.7,1.11865349]
[1673326513191,2.87113437,1327.8,1327.7,1.11865349]
[1673326513396,0.05,1327.8,1327.7,11.40671017]
[1673326513662,1.12851885,1327.9,1327.7,33.20776011]
[1673326513855,1.12851885,1327.9,1327.8,25.59375]
[1673326514081,1.12851885,1327.9,1327.8,30.12701517]
[1673326516296,1.12851885,1327.9,1327.8,22.59576517]
[1673326518650,2.82113437,1327.9,1327.8,22.59576517]
[1673326518858,2.82113437,1327.9,1327.8,18.1285]
[1673326520327,2.82113437,1327.9,1327.8,10.59725]
[1673326526371,2.82113437,1327.9,1327.8,3.066]
[1673326526685,24.28465552,1327.9,1327.7,1.18465349]
[1673326526915,1.12753505,1327.8,1327.7,1.11865349]
[1673326527557,1.19353505,1327.9,1327.8,1.12138804]
[1673326527769,1.12753505,1327.9,1327.8,23.71513804]
[1673326528099,1.12753505,1327.9,1327.8,16.24988804]
[1673326528259,12.51495057,1328.0,1327.8,8.71863804]
[1673326528800,1.12753505,1327.9,1327.8,8.71863804]
[1673326531770,1.12753505,1327.9,1327.8,1.18738804]
[1673326531987,1.12753505,1327.9,1327.8,1.12138804]
[1673326537550,0.066,1328.0,1327.8,31.65193683]
[1673326537768,12.04695057,1328.1,1327.9,27.51723569]
[1673326537769,2.88615057,1328.1,1327.9,27.51723569]
[1673326537921,2.82015057,1328.1,1327.9,27.58323569]
[1673326538401,2.82015057,1328.1,1327.9,28.94323569]
[1673326538402,1.12753505,1328.1,1327.9,28.94323569]
[1673326538574,1.12753505,1328.1,1327.9,33.11673688]
[1673326538575,2.82015057,1328.1,1327.9,33.11673688]
[1673326539290,1.12753505,1328.1,1327.9,33.11673688]
[1673326539501,2.82015057,1328.1,1327.9,33.11673688]
[1673326539925,1.12753505,1328.1,1327.9,33.11673688]
[1673326540611,2.88615057,1328.2,1327.9,33.11673688]
[1673326540768,2.82015057,1328.2,1328.0,2.5]
[1673326541110,2.82015057,1328.2,1328.0,10.03011]
[1673326541111,2.87015057,1328.2,1328.0,10.03011]
[1673326541302,1.12753505,1328.1,1328.0,10.59611]
[1673326541510,1.12753505,1328.1,1328.0,10.59612]
[1673326543077,1.12753505,1328.1,1328.0,20.67211208]
[1673326543967,4.01245632,1328.2,1328.0,28.20223208]
[1673326543968,2.88615057,1328.2,1328.0,28.20223208]
[1673326544126,2.82015057,1328.2,1328.0,28.20223208]
[1673326544797,2.82015057,1328.2,1328.0,29.55323208]
[1673326546116,2.82015057,1328.2,1328.0,14.49299208]
[1673326546326,2.82015057,1328.2,1328.0,11.94712]
[1673326546538,2.82015057,1328.2,1328.0,19.47724]
[1673326546747,2.82015057,1328.2,1328.0,27.00736]
[1673326548274,1.12753505,1328.1,1328.0,27.00736]
[1673326548463,2.82015057,1328.2,1328.0,25.65636]
[1673326549219,1.12753505,1328.2,1328.0,25.65636]
[1673326549595,2.82015057,1328.2,1328.0,25.65636]
[1673326550249,2.82015057,1328.2,1328.0,18.12624]
[1673326550567,1.12753505,1328.1,1328.0,18.12624]
[1673326550958,2.82215057,1328.2,1328.0,30.01869872]
[1673326551164,2.82015057,1328.2,1328.0,30.02069872]
[1673326551379,1.12753505,1328.2,1328.0,30.02069872]
[1673326551639,2.82015057,1328.2,1328.0,30.02069872]
[1673326552233,1.12753505,1328.2,1328.0,30.02069872]
[1673326552528,2.82015057,1328.2,1328.0,22.49057872]
[1673326552947,1.12753505,1328.2,1328.0,30.02069872]
[1673326553576,2.82015057,1328.2,1328.0,30.02069872]
[1673326554021,2.82015057,1328.2,1328.0,25.65636]
[1673326554253,2.82015057,1328.2,1328.0,3.066]
[1673326554426,2.82015057,1328.2,1328.0,3.0]
[1673326554868,2.82015057,1328.2,1328.0,10.53005]
[1673326555084,1.12753505,1328.1,1328.0,10.59605]
[1673326555578,2.82015057,1328.2,1328.0,10.59605]
[1673326555996,2.82015057,1328.2,1328.0,18.12617]
[1673326559378,1.12753505,1328.1,1328.0,18.12617]
[1673326559879,1.12753505,1328.1,1328.0,10.59605]
[1673326560837,1.12753505,1328.1,1328.0,3.066]
[1673326561066,1.12753505,1328.1,1328.0,3.0]
[1673326561923,1.12753505,1328.1,1328.0,18.06024]
[1673326562139,4.01245632,1328.2,1328.0,18.12624]
[1673326562140,2.88615057,1328.2,1328.0,18.12624]
[1673326562452,2.82015057,1328.2,1328.0,18.12624]
[1673326562750,2.82015057,1328.2,1328.0,27.23189524]
[1673326562910,10.42033505,1328.3,1328.0,34.75914797]
[1673326563120,10.42033505,1328.3,1328.2,15.05796]
[1673326563300,1.19353505,1328.3,1328.2,15.12396]
[1673326563509,1.12753505,1328.3,1328.2,15.12396]
[1673326564228,2.69887419,1328.3,1328.2,18.12396]
[1673326564968,2.69887419,1328.3,1328.2,3.066]
[1673326565177,2.69887419,1328.3,1328.2,3.0]
[1673326567216,2.69887419,1328.3,1328.2,18.05796]
[1673326567427,2.69887419,1328.3,1328.2,18.12396]
[1673326568056,2.69887419,1328.3,1328.2,10.59498]
[1673326569118,4.39148971,1328.3,1328.2,10.59498]
[1673326569283,2.69887419,1328.3,1328.2,10.59498]
[1673326570365,4.39148971,1328.3,1328.2,3.066]
[1673326570587,4.39148971,1328.3,1328.2,3.0]
[1673326571800,4.39148971,1328.3,1328.2,10.52898]
[1673326572015,2.69887419,1328.3,1328.2,10.59498]
[1673326572277,4.39148971,1328.3,1328.2,10.59498]
[1673326574137,4.39073599,1328.3,1328.2,0.066]
[1673326574462,28.66387014,1328.3,1328.0,0.066]
[1673326574671,1.12714837,1328.1,1327.9,8.56520537]
[1673326574881,7.53012,1328.0,1327.9,1.19040537]
[1673326575094,0.066,1328.0,1327.9,1.12440537]
[1673326575272,7.53012,1328.0,1327.9,1.12440537]
[1673326575477,7.59612,1328.0,1327.9,1.12440537]
[1673326577316,0.066,1328.0,1327.9,1.12440537]
[1673326577628,1.12755899,1328.0,1327.9,1.12440537]
[1673326577852,9.79369932,1328.1,1327.9,1.12440537]
[1673326578005,1.12755906,1328.0,1327.9,1.12440537]
[1673326578367,1.4667089,1328.0,1327.9,1.12440537]
[1673326579945,1.46670274,1328.0,1327.9,1.12440537]
[1673326580525,1.1275529,1328.0,1327.9,4.92206601]
[1673326580737,2.88427545,1328.1,1327.9,15.45274601]
[1673326580953,1.1275529,1328.1,1328.0,3.0]
[1673326581177,2.81827545,1328.1,1328.0,10.53012]
[1673326581366,2.81827545,1328.1,1328.0,10.59612]
[1673326581594,1.1275529,1328.1,1328.0,10.59612]
[1673326582055,2.81827545,1328.1,1328.0,10.59612]
[1673326582276,1.1275529,1328.1,1328.0,3.066]
[1673326582580,2.81827545,1328.1,1328.0,10.53012]
[1673326582759,2.81827545,1328.1,1328.0,3.066]
[1673326583113,1.1275529,1328.1,1328.0,3.0]
[1673326583431,1.1275529,1328.1,1328.0,10.53012]
[1673326583645,1.1275529,1328.1,1328.0,10.59612]
[1673326585390,1.1275529,1328.1,1328.0,18.12624]
[1673326585746,13.46287545,1328.2,1328.1,1.12113079]
[1673326586052,2.88427545,1328.2,1328.1,8.65068079]
[1673326586269,2.81827545,1328.2,1328.1,1.18713079]
[1673326586423,2.81827545,1328.2,1328.1,1.12113079]
[1673326588339,2.81827545,1328.2,1328.1,8.65068079]
[1673326588546,2.81827545,1328.2,1328.1,1.18713079]
[1673326588879,2.81827545,1328.2,1328.1,1.12113079]
[1673326590362,11.70836287,1328.2,1328.1,1.12113079]
[1673326590569,4.24538287,1328.2,1328.1,1.12113079]
[1673326590745,4.17938287,1328.2,1328.1,1.12113079]
[1673326593485,6.4336796,1328.2,1328.1,1.12113079]
[1673326593831,6.4996796,1328.2,1328.1,1.12113079]
[1673326598092,21.5576396,1328.2,1328.1,1.12113079]
[1673326600035,14.0286596,1328.2,1328.1,1.12113079]
[1673326600206,6.4996796,1328.2,1328.1,1.12113079]
[1673326600658,4.80895705,1328.2,1328.1,1.12113079]
[1673326601009,4.74295705,1328.2,1328.1,1.12113079]
[1673326601539,29.58290132,1328.2,1328.1,1.11770469]
[1673326601707,29.64890132,1328.2,1328.1,1.11770469]
[1673326601917,22.11992132,1328.2,1328.1,1.11770469]
[1673326602157,24.37573618,1328.2,1328.1,1.11770469]
[1673326602371,31.90471618,1328.2,1328.1,1.11770469]
[1673326602691,24.37573618,1328.2,1328.1,1.11770469]
[1673326603056,22.11992132,1328.2,1328.1,1.11770469]
[1673326603530,24.37598773,1328.2,1328.1,1.11770469]
[1673326603685,16.84700773,1328.2,1328.1,1.11770469]
[1673326604122,14.59094132,1328.2,1328.1,1.11770469]
[1673326604319,16.84700653,1328.2,1328.1,1.11770469]
[1673326605107,14.59094132,1328.2,1328.1,1.11770469]
[1673326606209,16.8472425,1328.2,1328.1,1.11770469]
[1673326606470,16.847242,1328.2,1328.1,1.11770469]
[1673326606684,16.84726152,1328.2,1328.1,1.11770469]
[1673326607694,24.37624152,1328.2,1328.1,1.11770469]
[1673326608134,16.84726152,1328.2,1328.1,1.11770469]
[1673326608583,24.37624152,1328.2,1328.1,1.11770469]
[1673326608775,14.59094132,1328.2,1328.1,1.11770469]
[1673326610756,7.06196132,1328.2,1328.1,1.11770469]
[1673326611305,14.59094132,1328.2,1328.1,1.11770469]
[1673326611929,4.81203528,1328.2,1328.1,1.11770469]
[1673326612144,3.95026456,1328.2,1328.1,16.17680469]
[1673326612371,3.95026456,1328.2,1328.1,8.71325469]
[1673326614694,3.95026456,1328.2,1328.1,16.24280469]
[1673326615007,1.6928896,1328.2,1328.1,16.24280469]
[1673326616569,1.6928896,1328.2,1328.1,8.71325469]
[1673326617898,2.25737496,1328.2,1328.1,8.71325469]
[1673326618319,2.25737496,1328.2,1328.1,1.18370469]
[1673326618526,5.07467596,1328.2,1328.1,1.11770469]
[1673326618786,5.14067596,1328.2,1328.1,1.11770469]
[1673326620161,2.883301,1328.2,1328.1,1.11770469]
[1673326620385,5.76013708,1328.2,1328.1,1.11770469]
[1673326620533,5.82613708,1328.2,1328.1,1.11770469]
[1673326621937,8.0835882,1328.2,1328.1,1.11770469]
[1673326622314,5.82613708,1328.2,1328.1,1.11770469]
[1673326622578,2.883301,1328.2,1328.1,1.11770469]
[1673326622764,2.817301,1328.2,1328.1,1.11770469]
[1673326623819,2.817301,1328.2,1328.1,1.11542561]
[1673326629122,5.0746201,1328.2,1328.1,1.11542561]
[1673326629278,2.3233191,1328.2,1328.1,1.11542561]
[1673326629492,2.2573191,1328.2,1328.1,1.11542561]
[1673326629741,2.2573191,1328.2,1328.1,8.64497561]
[1673326630071,2.2573191,1328.2,1328.1,8.71097561]
[1673326630277,2.2573191,1328.2,1328.1,1.18142561]
[1673326630443,2.2573191,1328.2,1328.1,1.11542561]
[1673326632478,3.58071311,1328.2,1328.1,1.11542561]
[1673326634017,2.2573191,1328.2,1328.1,1.11542561]
[1673326635213,5.0746201,1328.2,1328.1,1.11542561]
[1673326635435,5.1406201,1328.2,1328.1,1.11542561]
[1673326635796,2.3233191,1328.2,1328.1,1.11542561]
[1673326636009,2.2573191,1328.2,1328.1,1.11542561]
[1673326636248,3.58070911,1328.2,1328.1,1.11542561]
[1673326637111,6.39801011,1328.2,1328.1,1.11542561]
[1673326637284,3.64670911,1328.2,1328.1,1.11542561]
[1673326637625,3.58070911,1328.2,1328.1,1.11542561]
[1673326637839,6.39801011,1328.2,1328.1,1.11542561]
[1673326638124,3.64670911,1328.2,1328.1,1.11542561]
[1673326638288,6.39801011,1328.2,1328.1,1.11542561]
[1673326638452,3.64670911,1328.2,1328.1,1.11542561]
[1673326638664,3.58070911,1328.2,1328.1,1.11542561]
[1673326640448,6.39801011,1328.2,1328.1,1.11542561]
[1673326640657,6.46401011,1328.2,1328.1,1.11542561]
[1673326642757,4.20669101,1328.2,1328.1,1.11542561]
[1673326643024,4.14069101,1328.2,1328.1,1.11542561]
[1673326643494,2.817301,1328.2,1328.1,1.11542561]
[1673326646246,4.522301,1328.2,1328.1,1.11542561]
[1673326646435,12.051281,1328.2,1328.1,1.11542561]
[1673326646664,12.117281,1328.2,1328.1,1.11204873]
[1673326647294,18.52296,1328.2,1328.1,1.11204873]
[1673326647541,24.86189182,1328.2,1328.1,1.11204873]
[1673326648116,9.23116969,1328.2,1328.1,1.11204873]
[1673326648377,4.58158771,1328.2,1328.1,1.11204873]
[1673326648563,4.51558771,1328.2,1328.1,1.11204873]
[1673326649387,12.04456771,1328.2,1328.1,1.11204873]
[1673326649636,12.10745386,1328.2,1328.1,1.11204873]
[1673326649948,14.60745386,1328.2,1328.1,1.11204873]
[1673326650270,17.91338323,1328.2,1328.1,1.11204873]
[1673326651216,15.41338323,1328.2,1328.1,1.11204873]
[1673326651583,22.94236323,1328.2,1328.1,1.11204873]
[1673326652365,7.88440323,1328.2,1328.1,1.11204873]
[1673326652577,7.07847386,1328.2,1328.1,1.11204873]
[1673326653239,4.57847386,1328.2,1328.1,1.11204873]
[1673326653607,4.51247386,1328.2,1328.1,1.11204873]
[1673326654458,12.04145386,1328.2,1328.1,1.11204873]
[1673326654761,12.10745386,1328.2,1328.1,1.11204873]
[1673326655074,15.16338223,1328.2,1328.1,1.11204873]
[1673326655809,22.69236223,1328.2,1328.1,1.11204873]
[1673326656335,15.16338223,1328.2,1328.1,1.11204873]
[1673326656555,22.69236223,1328.2,1328.1,1.11204873]
[1673326656708,15.16338223,1328.2,1328.1,1.11204873]
[1673326657547,22.69236223,1328.2,1328.1,1.11204873]
[1673326660001,15.16338223,1328.2,1328.1,1.11204873]
[1673326660967,13.47249608,1328.2,1328.1,1.11204873]
[1673326661450,21.00147608,1328.2,1328.1,1.11204873]
[1673326662279,5.94351608,1328.2,1328.1,1.11204873]
[1673326662657,5.14492634,1328.2,1328.1,1.11204873]
[1673326662809,2.88758771,1328.2,1328.1,1.11204873]
[1673326663019,2.82158771,1328.2,1328.1,1.11204873]
[1673326666388,10.35056771,1328.2,1328.1,1.11204873]
[1673326666593,22.65294,1328.2,1328.1,1.11204873]
[1673326666797,21.87590682,1328.2,1328.1,1.11204873]
[1673326667015,23.58090682,1328.2,1328.1,1.11204873]
[1673326667763,8.52294682,1328.2,1328.1,1.11204873]
[1673326667978,5.16534984,1328.2,1328.1,1.11204873]
[1673326668180,2.88751714,1328.2,1328.1,1.11204873]
[1673326668395,2.82151714,1328.2,1328.1,1.11204873]
[1673326670844,10.98879984,1328.3,1328.1,1.11204873]
[1673326671055,5.32170696,1328.2,1328.1,1.11204873]
[1673326671208,2.88770696,1328.2,1328.1,1.11204873]
[1673326671417,4.45275764,1328.2,1328.1,1.11204873]
[1673326672843,4.45275764,1328.2,1328.1,1.10978487]
[1673326673274,2.82170696,1328.2,1328.1,1.10978487]
[1673326677835,2.82170696,1328.2,1327.9,15.23349]
[1673326678044,2.82251255,1328.0,1327.9,15.23349]
[1673326678293,2.82251255,1328.0,1327.9,7.59639]
[1673326680263,2.8226682,1328.0,1327.9,0.066]
[1673326680470,1.69350753,1328.0,1327.8,30.15169174]
[1673326680724,1.1291711,1327.9,1327.8,27.34863]
[1673326680938,1.69350753,1328.0,1327.8,33.379584]
[1673326681104,1.12916863,1327.9,1327.8,34.31390695]
[1673326681467,2.25833971,1327.9,1327.8,36.18264161]
[1673326681679,2.25842842,1327.9,1327.8,36.18264161]
[1673326682204,2.25842852,1327.9,1327.8,36.18264161]
[1673326682422,2.25842848,1327.9,1327.8,36.18264161]
[1673326682578,1.12916863,1327.9,1327.8,36.18264161]
[1673326682941,2.25842845,1327.9,1327.8,36.18264161]
[1673326683135,2.25844589,1327.9,1327.8,36.18264161]
[1673326683342,2.25844339,1327.9,1327.8,36.18264161]
[1673326683554,1.12916863,1327.9,1327.8,36.18264161]
[1673326683767,2.25844933,1327.9,1327.8,36.18264161]
[1673326684100,2.25844932,1327.9,1327.8,36.18264161]